Cogmind - Beta 11.1 @@@ ROGUE MODE // 2022.09.06 @ 17:39:29 Player: Smie Result: Destroyed by H-81 Overseer with Heavy Linear Accelerator Performance ------------- Evolutions (8) 4000 Regions Visited (27) 5400 Robots Destroyed (104) 520 Value Destroyed (4235) 4235 Prototype IDs (26) 520 Alien Tech Used (6) 1200 Bonus (8697) 8697 TOTAL SCORE: 24572 Bonus ------- High Alert Combat Kills 73 Follower Combat Kills 1124 Entered DSFs 500 Network Hubs Disabled 200 Destroyed Z-Imprinter 1000 Met Zhirov 300 Met R17 at Cetus 500 Used Core Reset Matrix 3000 Met Sigix 2000 Cogmind --------- Core Integrity 0/1450 Matter 170/300 Energy 64/100 System Corruption 2% Temperature Cool (0) Movement Flying (30) Location -2/Section 7 Parts ------- > --- POWER (2) -------- (None) > --- PROPULSION (8) --- Cooled Q-thruster > --- UTILITY (11) ----- Advanced Targeting Computer > --- WEAPON (2) ------- (None) > --- INVENTORY (5) ---- Sigix Containment Pod Peak State ------------ > --- POWER ------------ Fission Core Fission Core > --- PROPULSION ------- Carbon-fiber Leg Carbon-fiber Leg Carbon-fiber Leg Enhanced Flexi-carbon Leg Enhanced Flexi-carbon Leg > --- UTILITY ---------- Advanced Heat Sink Advanced Energy Well Zionite Biocell Structural Scanner Advanced Signal Interpreter Experimental Target Analyzer Layered Medium Armor Plating Focal Shield > --- WEAPON ----------- Wave Gun Great Maul > --- INVENTORY -------- Fission Core Neutrino Core Field Propulsion Drive Improved Sensor Array CR-A16's Pointy Stick [Rating: 88] Favorites ----------- Power Improved Deuterium Engine Engine Improved Deuterium Engine Power Core Fission Core Reactor Zionite Light DM Reactor Propulsion Medium Treads Treads Medium Treads Leg Carbon-fiber Leg Wheel Wheel Hover Unit Improved Hover Unit Flight Unit Field Propulsion Drive Utility Advanced Signal Interpreter Device Weapon Cycler Storage Large Storage Unit Processor Advanced Signal Interpreter Protection Layered Medium Armor Plating Weapon Great Maul Energy Gun Heavy Particle Gun Launcher Rocket Launcher Impact Weapon Great Maul Slashing Weapon Katana Piercing Weapon CR-A16's Behemoth Slayer Build | -11 -10 -10 -10 -9 -8 -7 -7 -6 -6 -6 -6 -6 -5 -5 -5 -5 -5 -5 -4 -4 -4 -4 -3 -3 -2 -2 -2 ------- Run | Scr Mat Min Exi Min Mat Fac DSF Fac Low Low Zio Dee Pro Fac Ext Cet Arc Hub Fac Upp Upp Zhi Pro Res Res Qua Sec Slots Evolved 16 | . . . . . 4 2 . 2 . . . . . 2 . . . . 2 . . . . 2 2 . . Power 1 | . . . . . . . . 1 . . . . . . . . . . . . . . . . . . . Propulsion 6 | . . . . . 1 1 . . . . . . . 1 . . . . 1 . . . . . 2 . . Utility 9 | . . . . . 3 1 . 1 . . . . . 1 . . . . 1 . . . . 2 . . . Weapon . | . . . . . . . . . . . . . . . . . . . . . . . . . . . . Parts Attached 199 | 6 3 3 2 5 38 3 7 34 5 10 4 8 2 6 18 4 1 6 5 3 1 4 1 2 10 8 . Power 17 | 1 . . . 2 . 1 . 3 . 1 . 2 . 1 3 1 . . . . . 1 . . 1 . . Engine 6 | 1 . . . . . 1 . 2 . . . . . 1 1 . . . . . . . . . . . . Core 7 | . . . . 2 . . . 1 . 1 . 1 . . 2 . . . . . . . . . . . . Reactor 4 | . . . . . . . . . . . . 1 . . . 1 . . . . . 1 . . 1 . . Propulsion 60 | 2 . 1 . 1 12 1 4 4 3 4 . 1 1 2 5 . 1 4 4 1 . . . 2 4 3 . Treads 12 | . . . . . 1 . 4 3 . 2 . . . 1 . . 1 . . . . . . . . . . Leg 19 | . . . . . 10 . . . 1 1 . 1 . . 5 . . . . . . . . . 1 . . Wheel 11 | 2 . 1 . 1 1 1 . . 1 1 . . . . . . . 1 . . . . . 2 . . . Hover 2 | . . . . . . . . 1 1 . . . . . . . . . . . . . . . . . . Flight 16 | . . . . . . . . . . . . . 1 1 . . . 3 4 1 . . . . 3 3 . Utility 55 | 1 2 . 1 1 8 1 1 14 . 2 3 . . 2 7 1 . 2 1 1 1 2 1 . 3 . . Device 18 | . . . . . 3 1 . 5 . 1 . . . 2 2 . . . . 1 1 1 1 . . . . Storage 7 | 1 1 . 1 . . . . . . . . . . . 3 . . 1 . . . . . . . . . Processor 11 | . . . . . 1 . . 5 . . 3 . . . . . . . . . . . . . 2 . . Hackware . | . . . . . . . . . . . . . . . . . . . . . . . . . . . . Protection 19 | . 1 . . 1 4 . 1 4 . 1 . . . . 2 1 . 1 1 . . 1 . . 1 . . Artifact . | . . . . . . . . . . . . . . . . . . . . . . . . . . . . Weapon 67 | 2 1 2 1 1 18 . 2 13 2 3 1 5 1 1 3 2 . . . 1 . 1 . . 2 5 . Energy Gun 34 | 2 . 1 1 . 14 . 2 8 . 2 . 2 . . 1 1 . . . . . . . . . . . Energy Cannon . | . . . . . . . . . . . . . . . . . . . . . . . . . . . . Ballistic Gun . | . . . . . . . . . . . . . . . . . . . . . . . . . . . . Ballistic Cannon . | . . . . . . . . . . . . . . . . . . . . . . . . . . . . Launcher 10 | . 1 1 . 1 1 . . 2 1 . 1 2 . . . . . . . . . . . . . . . Special Weapon . | . . . . . . . . . . . . . . . . . . . . . . . . . . . . Impact Weapon 8 | . . . . . . . . 1 1 1 . 1 . 1 1 . . . . 1 . . . . . 1 . Slashing Weapon 5 | . . . . . 3 . . 2 . . . . . . . . . . . . . . . . . . . Piercing Weapon 10 | . . . . . . . . . . . . . 1 . 1 1 . . . . . 1 . . 2 4 . Special Melee Weapon . | . . . . . . . . . . . . . . . . . . . . . . . . . . . . Unidentified Prototypes 20 | . . . . . 3 . . . . . 4 1 . . 4 1 . . . . . 3 . . 2 2 . Corrupted Parts 6 | . . . . 2 . . . . . 1 . . 1 . 2 . . . . . . . . . . . . System Corruption 17 | . . . . 7 . . . . . 4 . . 3 . 3 . . . . . . . . . . . . Parts Lost 79 | . . 1 . . 4 . 1 6 4 5 2 11 5 1 3 5 8 6 3 1 . . 4 3 2 4 . Power 13 | . . . . . 1 . . 1 . 1 . 2 2 1 1 2 1 . . . . . . . 1 . . Propulsion 36 | . . 1 . . . . . 2 4 2 . 3 3 . 1 1 3 5 3 . . . 2 2 1 3 . Utility 22 | . . . . . 3 . 1 2 . 1 2 2 . . 1 2 4 1 . 1 . . 2 . . . . Weapon 8 | . . . . . . . . 1 . 1 . 4 . . . . . . . . . . . 1 . 1 . Highest Loss Streak 9 | . . 1 . . 1 . 1 3 2 2 2 9 5 1 3 5 8 5 2 1 . . 4 3 1 2 . To Critical Strikes . | . . . . . . . . . . . . . . . . . . . . . . . . . . . . Average Slot Usage (%) 72 | . 87 90 100 95 83 69 75 90 87 89 96 62 33 30 68 76 50 37 22 25 23 30 31 9 13 16 8 Engine 3 | . 14 14 14 11 . 7 7 5 6 6 6 . . 3 1 1 . . . . . . . . . . . Core 4 | . . . . 1 9 . . 4 6 4 6 6 1 . 6 . . . . . . . . . . . . Treads 6 | . . . . . . . 2 23 12 8 13 3 . 4 . . 1 . . . . . . . . . . Leg 6 | . . . . . 18 . . . 1 7 6 10 3 . 16 18 9 2 . . . . . . . . . Wheel 3 | . 28 18 28 25 3 15 12 . . 2 6 . . . . . . . . . . . . 3 . . . Flight 1 | . . . . . . . . . . . . . . . 3 . . 7 10 10 10 10 8 . 4 8 4 Device 5 | . . . . . 9 7 15 6 . 4 6 6 2 3 13 17 7 3 . 4 2 5 7 . . . . Storage 5 | . 14 14 14 14 9 7 7 6 6 6 6 1 . . 3 5 5 5 . . . . . . . . . Processor 14 | . . . . . 7 7 7 21 26 26 23 13 13 11 11 11 6 5 5 5 5 5 5 4 3 4 4 Protection 4 | . 1 14 14 12 7 7 5 5 6 6 6 1 . . 2 3 3 2 1 . . 1 . . 1 . . Energy Gun 7 | . 27 18 28 25 16 7 13 8 6 9 5 4 3 . . . . . . . . . . . . . . Impact Weapon 2 | . . . . . . . . 1 5 2 6 5 3 4 4 5 5 2 . 1 5 2 . . . . . Naked Turns 39 | . . . . . . . . . . . . . . . . . . . . . . . . . 39 . . Heaviest Build 65 | 14 23 23 32 38 50 47 55 65 63 63 61 61 23 12 53 49 39 38 22 5 6 16 17 2 20 10 . Greatest Support 112 | 20 20 20 20 20 40 56 112 112 84 35 10 56 35 28 101 86 71 28 27 17 17 17 17 40 22 14 7 Greatest Overweight (x) 20 | . 1 2 1 3 1 . 1 . 20 20 6 6 2 1 1 . . 1 . . . . 1 . 1 2 . Average Overweight (x) . | . . 1 1 1 . . . . 1 3 5 . . . . . . . . . . . . . . . . Largest Inventory Capacity 15 | 8 10 10 15 15 15 15 15 15 15 15 15 15 5 5 5 5 5 15 5 5 5 5 5 5 5 5 5 Average Capacity 11 | 7 9 10 11 15 15 15 15 15 15 15 15 8 5 5 5 5 5 6 5 5 5 5 5 5 5 5 5 Most Carried 15 | 6 10 10 11 14 15 15 15 15 15 15 15 15 5 5 5 5 5 5 5 5 5 5 5 5 5 5 4 Average Carried 10 | 4 9 9 10 12 14 12 13 14 14 13 14 7 4 4 4 5 5 4 5 4 4 4 5 5 3 4 3 Final Capacity 15 | 8 10 10 15 15 15 15 15 15 15 15 15 5 5 5 5 5 5 5 5 5 5 5 5 5 5 5 5 Final Carried 15 | 6 10 10 11 14 15 12 15 15 15 14 15 5 5 5 5 5 5 5 5 4 5 5 5 5 5 4 2 Class Distribution -------------------- 47% | Scavenger-Mutant 45% | Mutant 3% | Sprinter 3% | Commander-Mutant Dominant Class ---------------- Mutant | -10/Materials Mutant | -10/Mines Mutant | -10/Exiles Mutant | -9/Mines Mutant | -8/Materials Mutant | -7/Factory Mutant | -7/DSF Mutant | -6/Factory Scavenger-Mutant | -6/Lower Caves Scavenger-Mutant | -6/Lower Caves Scavenger-Mutant | -6/Zion Scavenger-Mutant | -6/Deep Caves Mutant | -5/Proximity Caves Mutant | -5/Factory Commander-Mutant | -5/Extension Scavenger-Mutant | -5/Cetus Scavenger-Mutant | -5/Archives Mutant | -5/Hub_04(d) Mutant | -4/Factory Mutant | -4/Upper Caves Mutant | -4/Upper Caves Mutant | -4/Zhirov Mutant | -3/Proximity Caves Mutant | -3/Research Mutant | -2/Research Sprinter | -2/Quarantine Sprinter | -2/Section 7 Resources | -11 -10 -10 -10 -9 -8 -7 -7 -6 -6 -6 -6 -6 -5 -5 -5 -5 -5 -5 -4 -4 -4 -4 -3 -3 -2 -2 -2 ----------- Run | Scr Mat Min Exi Min Mat Fac DSF Fac Low Low Zio Dee Pro Fac Ext Cet Arc Hub Fac Upp Upp Zhi Pro Res Res Qua Sec Matter Collected 2477 | 260 60 55 20 20 482 . 55 395 103 163 30 29 78 164 211 64 . 24 65 33 . . 41 26 99 . . Remotely . | . . . . . . . . . . . . . . . . . . . . . . . . . . . . Salvage Created 5499 | 78 226 71 . . 1782 . 275 942 211 692 . 29 78 153 275 124 251 101 101 . . . . . 110 . . Parts 239 | . 10 2 . . 100 . 17 39 7 20 . . 1 7 10 5 11 2 6 . . . . . 2 . . Haulers Intercepted 9 | . . . . . 5 . . 1 . 1 . . . 1 . . . 1 . . . . . . . . . Recyclers Shooed 3 | . . . . . . . . 3 . . . . . . . . . . . . . . . . . . . Parts Field Recycled . | . . . . . . . . . . . . . . . . . . . . . . . . . . . . Retrieved Matter . | . . . . . . . . . . . . . . . . . . . . . . . . . . . . Parts Self-Destructed 24 | . . . . . . . . . 14 10 . . . . . . . . . . . . . . . . . Prevented 3 | . . . . . . . . . 1 1 . . . . . . . . . . 1 . . . . . . Kills | -11 -10 -10 -10 -9 -8 -7 -7 -6 -6 -6 -6 -6 -5 -5 -5 -5 -5 -5 -4 -4 -4 -4 -3 -3 -2 -2 -2 ------- Run | Scr Mat Min Exi Min Mat Fac DSF Fac Low Low Zio Dee Pro Fac Ext Cet Arc Hub Fac Upp Upp Zhi Pro Res Res Qua Sec Combat Hostiles Destroyed 76 | . 4 2 . . 26 . 5 9 5 7 . 5 4 1 2 2 3 . 1 . . . . . . . . Melee 9 | . . . . . 2 . . . . 1 . . 1 . . 2 3 . . . . . . . . . . Guns 47 | . 4 1 . . 24 . 5 4 3 5 . 1 . . . . . . . . . . . . . . . AOE 9 | . . 1 . . . . . 3 1 . . 4 . . . . . . . . . . . . . . . Classes Destroyed 18 | 1 3 . . . 5 . 3 . 2 1 . 2 . . 1 . . . . . . . . . . . . Worker 4 | . . . . . 1 . . 2 . . . . . 1 . . . . . . . . . . . . . Builder 4 | . 1 . . . 2 . . . . . . . . . 1 . . . . . . . . . . . . Tunneler 1 | . . . . . 1 . . . . . . . . . . . . . . . . . . . . . . Hauler 9 | . . . . . 5 . . 1 . 1 . . . 1 . . . 1 . . . . . . . . . Recycler 8 | 1 . . . . 2 . . 3 . . . . . . 1 . . . . . . . . . 1 . . Watcher 4 | . 1 . . . . . . 3 . . . . . . . . . . . . . . . . . . . Swarmer 5 | . . . . . . . . . 1 . . . 4 . . . . . . . . . . . . . . Grunt 36 | . 4 2 . . 18 . 2 2 3 5 . . . . . . . . . . . . . . . . . Brawler 1 | . . . . . . . . . 1 . . . . . . . . . . . . . . . . . . Sentry 12 | . . . . . 6 . . 3 . . . . . . . . 3 . . . . . . . . . . Specialist 1 | . . . . . . . 1 . . . . . . . . . . . . . . . . . . . . Hunter 7 | . . . . . 2 . . 2 . 2 . . . 1 . . . . . . . . . . . . . Programmer 2 | . . . . . . . 1 1 . . . . . . . . . . . . . . . . . . . Heavy 2 | . . . . . . . 1 1 . . . . . . . . . . . . . . . . . . . Behemoth 3 | . . . . . . . . . . . . . . . 2 . . . 1 . . . . . . . . Cetus Guard 2 | . . . . . . . . . . . . . . . . 2 . . . . . . . . . . . Z-Light 2 | . . . . . . . . . . . . 2 . . . . . . . . . . . . . . . Decomposer 2 | . . . . . . . . . . 2 . . . . . . . . . . . . . . . . . Samaritan 2 | . . . . . . . . . . 2 . . . . . . . . . . . . . . . . . Assembled 2 | . . . . . . . . . . . . 2 . . . . . . . . . . . . . . . Best Kill Streak 7 | 1 2 2 . . 7 . 2 4 1 3 . 3 4 2 2 2 2 1 1 . . . . . 1 . . Combat Bots Only 5 | . 2 2 . . 5 . 2 3 1 3 . 3 4 1 2 2 2 . 1 . . . . . . . . Max Kills in Single Turn 2 | 1 1 1 . . 1 . 1 1 1 1 . 2 1 1 1 1 1 1 1 . . . . . 1 . . Gunslinging . | . . . . . . . . . . . . . . . . . . . . . . . . . . . . Exploded 2 | . . 1 . . . . . 1 1 . . 2 . . . . . . . . . . . . . . . Melee 1 | . . . . . 1 . . . . 1 . . 1 . . 1 1 . . . . . . . . . . Uniques/NPCs Destroyed 1 | . . . . . . . . . . . . 1 . . . . . . . . . . . . . . . Z-Imprinter (-6/Deep Caves) Combat | -11 -10 -10 -10 -9 -8 -7 -7 -6 -6 -6 -6 -6 -5 -5 -5 -5 -5 -5 -4 -4 -4 -4 -3 -3 -2 -2 -2 -------- Run | Scr Mat Min Exi Min Mat Fac DSF Fac Low Low Zio Dee Pro Fac Ext Cet Arc Hub Fac Upp Upp Zhi Pro Res Res Qua Sec Damage Taken 15948 | . 134 128 . 22 1622 . 563 2141 527 1037 . 1147 753 366 860 941 1248 523 458 38 22 . 121 1360 917 863 157 Core 4008 | . 27 59 . 22 183 . 70 155 38 58 . 157 273 121 169 110 172 299 72 . . . 18 727 537 584 157 Absorbed by Shields 277 | . . . . . . . . . . . . . . . 200 77 . . . . . . . . . . . Redirected to Shielding 18 | . . . . . . . . 18 . . . . . . . . . . . . . . . . . . . Regen/Repaired (Parts) 111 | . . . . . . . . . . . . . . . 111 . . . . . . . . . . . . Core Remaining (%) 59 | 100 . . . 56 66 . 90 . . . . . 19 . . . . 12 . . . . 92 44 . . . Volleys Fired 273 | 5 13 5 . . 98 . 17 66 17 28 . 20 . . . 4 . . . . . . . . . . . Largest 2 | 2 2 2 . . 2 . 2 2 2 2 . 1 . . . 1 . . . . . . . . . . . Hottest 165 | 100 100 100 . . 140 . 130 165 165 130 . 63 . . . 81 . . . . . . . . . . . Shots Fired 442 | 10 26 10 . . 182 . 34 93 21 42 . 20 . . . 4 . . . . . . . . . . . Gun 414 | 10 26 9 . . 179 . 34 88 18 42 . 4 . . . 4 . . . . . . . . . . . Cannon . | . . . . . . . . . . . . . . . . . . . . . . . . . . . . Launcher 28 | . . 1 . . 3 . . 5 3 . . 16 . . . . . . . . . . . . . . . Special . | . . . . . . . . . . . . . . . . . . . . . . . . . . . . Kinetic . | . . . . . . . . . . . . . . . . . . . . . . . . . . . . Thermal 414 | 10 26 9 . . 179 . 34 88 18 42 . 4 . . . 4 . . . . . . . . . . . Explosive 28 | . . 1 . . 3 . . 5 3 . . 16 . . . . . . . . . . . . . . . Electromagnetic . | . . . . . . . . . . . . . . . . . . . . . . . . . . . . Robot Hit Streak 20 | 4 5 8 . . 20 . 14 19 10 19 . 3 . . . 1 . . . . . . . . . . . Robot Miss Streak 3 | 2 3 1 . . 3 . 2 3 2 1 . 3 . . . 2 . . . . . . . . . . . Penetration Max . | . . . . . . . . . . . . . . . . . . . . . . . . . . . . Secondary Targets 2 | . . . . . . . 2 . . . . . . . . . . . . . . . . . . . . Max Gunslinging Chain 1 | . . . . . . . 1 . . . . . . . . . . . . . . . . . . . . Shots Hit Robots 398 | 7 16 8 . . 135 . 27 78 22 41 . 10 7 8 8 7 15 4 2 . . . . . 3 . . Core Hits 213 | 2 12 4 . . 65 . 11 43 17 22 . 19 1 3 2 4 6 2 . . . . . . . . . Critical Kills 2 | . . . . . . . . . . 1 . . . . 1 . . . . . . . . . . . . Critical Parts Destroyed 5 | . . . . . . . . . 1 . . . 2 1 . . 1 . . . . . . . . . . Critical Strikes 40 | 1 2 . . . 11 . 1 9 1 3 . . 2 1 1 2 6 . . . . . . . . . . Burn 26 | 1 2 . . . 11 . 1 9 . 2 . . . . . . . . . . . . . . . . . Smash 8 | . . . . . . . . . 1 1 . . 2 1 1 1 1 . . . . . . . . . . Impale 6 | . . . . . . . . . . . . . . . . 1 5 . . . . . . . . . . Melee Attacks 156 | . . . . . 6 . . 11 3 8 3 7 15 19 9 9 18 7 2 1 . . . 1 8 29 . Impact 62 | . . . . . . . . 4 3 8 3 7 13 13 5 1 3 2 . . . . . . . . . Slashing 13 | . . . . . 6 . . 7 . . . . . . . . . . . . . . . . . . . Piercing 81 | . . . . . . . . . . . . . 2 6 4 8 15 5 2 1 . . . 1 8 29 . Sneak Attacks 9 | . . . . . . . . 2 . 1 . . . 1 2 . . 2 . . . . . . 1 . . Combat Hostiles . | . . . . . . . . . . . . . . . . . . . . . . . . . . . . Follow-up Attacks 6 | . . . . . . . . . . . . . . . . 1 3 2 . . . . . . . . . Damage Inflicted 10600 | 88 201 172 . . 2511 . 581 1985 731 1020 . 1026 331 341 318 206 524 292 58 . . . . . 215 . . Guns 5857 | 88 201 86 . . 2324 . 581 1383 376 720 . 74 . . . 24 . . . . . . . . . . . Cannons . | . . . . . . . . . . . . . . . . . . . . . . . . . . . . Explosions 1921 | . . 86 . . 121 . . 456 284 . . 952 . . . . . 22 . . . . . . . . . Melee 2789 | . . . . . 66 . . 122 71 300 . . 331 341 310 182 524 270 57 . . . . . 215 . . Ramming 33 | . . . . . . . . 24 . . . . . . 8 . . . 1 . . . . . . . . Kinetic . | . . . . . . . . . . . . . . . . . . . . . . . . . . . . Thermal 5857 | 88 201 86 . . 2324 . 581 1383 376 720 . 74 . . . 24 . . . . . . . . . . . Explosive 1899 | . . 86 . . 121 . . 456 284 . . 952 . . . . . . . . . . . . . . . Electromagnetic 22 | . . . . . . . . . . . . . . . . . . 22 . . . . . . . . . Impact 1274 | . . . . . . . . . 71 300 . . 293 112 238 22 91 147 . . . . . . . . . Slashing 188 | . . . . . 66 . . 122 . . . . . . . . . . . . . . . . . . . Piercing 1327 | . . . . . . . . . . . . . 38 229 72 160 433 123 57 . . . . . 215 . . Highest Corruption 7 | . . . . 7 4 . . 1 1 5 5 . 3 . 3 3 3 5 . 3 3 3 6 . 2 2 2 Average Corruption 2 | . . . . 6 3 . . 1 1 4 5 . 3 . 2 3 3 3 . 2 3 3 3 . 1 1 2 Corruption Purged 3 | . . . . . . . . . . . . . . . . . . . . . . . 3 . . . . Corruption Blocked . | . . . . . . . . . . . . . . . . . . . . . . . . . . . . Effects 96 | . . . . 1 15 . . 5 7 27 7 . 2 . 11 6 4 3 . 2 . 2 3 . 1 . . Message Errors 19 | . . . . . 2 . . . 2 7 1 . 1 . 4 1 . . . . . 1 . . . . . Matter Fused 26 | . . . . . 4 . . 3 . 6 3 . . . 1 1 3 1 . 2 . . 2 . . . . Heat Flow Errors 17 | . . . . . 2 . . 1 2 3 2 . . . 1 4 1 . . . . 1 . . . . . Energy Discharges 11 | . . . . 1 1 . . 1 1 2 . . 1 . 2 . . . . . . . 1 . 1 . . Data Loss (minor) 13 | . . . . . 4 . . . 1 4 . . . . 3 . . 1 . . . . . . . . . Data Loss (major) 5 | . . . . . . . . . 1 2 1 . . . . . . 1 . . . . . . . . . Misfires 2 | . . . . . . . . . . 2 . . . . . . . . . . . . . . . . . Alerts 1 | . . . . . . . . . . 1 . . . . . . . . . . . . . . . . . Weapon Failures 2 | . . . . . 2 . . . . . . . . . . . . . . . . . . . . . . Overload Shots . | . . . . . . . . . . . . . . . . . . . . . . . . . . . . Overflow Damage 515 | . . 2 . . . . . 6 36 71 . 44 139 46 56 . 22 6 2 . . . . . 85 . . Projectiles . | . . . . . . . . . . . . . . . . . . . . . . . . . . . . Explosions 58 | . . 2 . . . . . 6 . . . 44 . . . . . 6 . . . . . . . . . Melee 457 | . . . . . . . . . 36 71 . . 139 46 56 . 22 . 2 . . . . . 85 . . Knockbacks 6 | . . . . . . . . . 1 1 . . 2 . 2 . . . . . . . . . . . . Impact 5 | . . . . . . . . . 1 1 . . 2 . 1 . . . . . . . . . . . . Kinetic . | . . . . . . . . . . . . . . . . . . . . . . . . . . . . Secondary 1 | . . . . . . . . . . . . . . . 1 . . . . . . . . . . . . Self-Inflicted Damage 278 | . . 31 . . 37 . . 27 . . . 74 . . . . . 109 . . . . . . . . . Shots 7 | . . 1 . . 2 . . 1 . . . 2 . . . . . 1 . . . . . . . . . Rammed 2 | . . . . . . . . 1 . . . . . . . . . . 1 . . . . . . . . Targets Rammed 3 | . . . . . . . . 1 . . . . . . 1 . . . 1 . . . . . . . . Kicked 1 | . . . . . . . . . . . . . . . 1 . . . . . . . . . . . . Crushed . | . . . . . . . . . . . . . . . . . . . . . . . . . . . . Highest Temperature 445 | 195 144 275 . . 321 . 120 445 386 368 276 121 . . 206 186 232 . . . . 177 . . . . . Average Temperature 119 | 104 54 133 . . 91 . 44 162 169 126 125 47 . . 110 63 122 . . . . 99 . . . . . Received Heat Transfer 3246 | . 78 90 . . 756 . 90 234 198 324 . 299 48 . 179 166 207 9 9 . 12 . . 322 144 72 9 Effects 23 | . . . . . 3 . . 13 1 6 . . . . . . . . . . . . . . . . . Shutdowns 5 | . . . . . . . . 4 . 1 . . . . . . . . . . . . . . . . . Energy Bleed 3 | . . . . . . . . 1 1 1 . . . . . . . . . . . . . . . . . Interference 6 | . . . . . 3 . . . . 3 . . . . . . . . . . . . . . . . . Matter Decay 1 | . . . . . . . . . . 1 . . . . . . . . . . . . . . . . . Damage (minor) 1 | . . . . . . . . 1 . . . . . . . . . . . . . . . . . . . Damage (major) 7 | . . . . . . . . 7 . . . . . . . . . . . . . . . . . . . Siege Activations . | . . . . . . . . . . . . . . . . . . . . . . . . . . . . Robots Corrupted . | . . . . . . . . . . . . . . . . . . . . . . . . . . . . Combat Hostiles . | . . . . . . . . . . . . . . . . . . . . . . . . . . . . Parts Fried 8 | . . . . . . . 1 . . 3 . . 1 . 3 . . . . . . . . . . . . Impact Corruptions 16 | . . . . . . . . . 1 2 . . 8 2 2 . 1 . . . . . . . . . . Robots Melted 4 | . . . . . . . . 4 . . . . . . . . . . . . . . . . . . . Combat Hostiles 2 | . . . . . . . . 2 . . . . . . . . . . . . . . . . . . . Parts Melted 41 | 1 3 . . . 8 . . 21 . 8 . . . . . . . . . . . . . . . . . Heat Transferred 14667 | 333 740 259 . . 5678 . 1110 3975 875 1624 . 36 . . . 37 . . . . . . . . . . . Parts Sabotaged . | . . . . . . . . . . . . . . . . . . . . . . . . . . . . Parts Stolen . | . . . . . . . . . . . . . . . . . . . . . . . . . . . . Parts Stripped . | . . . . . . . . . . . . . . . . . . . . . . . . . . . . Power Chain Reactions . | . . . . . . . . . . . . . . . . . . . . . . . . . . . . Missiles Intercepted . | . . . . . . . . . . . . . . . . . . . . . . . . . . . . Alert | -11 -10 -10 -10 -9 -8 -7 -7 -6 -6 -6 -6 -6 -5 -5 -5 -5 -5 -5 -4 -4 -4 -4 -3 -3 -2 -2 -2 ------- Run | Scr Mat Min Exi Min Mat Fac DSF Fac Low Low Zio Dee Pro Fac Ext Cet Arc Hub Fac Upp Upp Zhi Pro Res Res Qua Sec Peak Influence 543 | 5 148 142 . . 508 226 268 222 . . . . . 126 514 359 183 356 274 . . . . 87 317 543 204 Initial 287 | . 3 57 . . . 226 158 140 . . . . . 84 61 287 143 62 159 . . . . . 48 172 189 Average 194 | . 67 135 . . 257 226 209 88 . . . . . 103 317 322 159 164 194 . . . . 32 174 363 189 Maximum Alert Level 2 | . . . . . 2 1 1 1 . . . . . . 2 1 . 1 1 . . . . . 1 2 1 Low Security (%) 57 | 100 100 100 . 100 30 . 48 96 . . . . . 100 13 . 100 76 58 . . . . 100 59 21 94 Level 1 33 | . . . . . 62 100 51 3 . . . . . . 54 100 . 23 41 . . . . . 40 33 5 Level 2 8 | . . . . . 6 . . . . . . . . . 31 . . . . . . . . . . 44 . Level 3 . | . . . . . . . . . . . . . . . . . . . . . . . . . . . . Level 4 . | . . . . . . . . . . . . . . . . . . . . . . . . . . . . Level 5 . | . . . . . . . . . . . . . . . . . . . . . . . . . . . . High Security . | . . . . . . . . . . . . . . . . . . . . . . . . . . . . Max Security . | . . . . . . . . . . . . . . . . . . . . . . . . . . . . Squads Dispatched 20 | . 1 . . . 4 . 1 4 . . . . . 2 1 . . 2 1 . . . . 1 2 1 . Investigation 3 | . . . . . 2 . . . . . . . . . . . . . . . . . . . 1 . . Extermination 2 | . . . . . . . . 1 . . . . . 1 . . . . . . . . . . . . . Reinforcement 14 | . 1 . . . 2 . 1 3 . . . . . 1 1 . . 2 1 . . . . . 1 1 . Assault 1 | . . . . . . . . . . . . . . . . . . . . . . . . 1 . . . Garrison . | . . . . . . . . . . . . . . . . . . . . . . . . . . . . Intercept . | . . . . . . . . . . . . . . . . . . . . . . . . . . . . Searches Triggered 1 | . . . . . . . . . . . . . . . . . . . . . . . . . . 1 . Construction Impeded . | . . . . . . . . . . . . . . . . . . . . . . . . . . . . Haulers Reinforced 2 | . . . . . . . . 1 . . . . . 1 . . . . . . . . . . . . . Active Scanning Responses . | . . . . . . . . . . . . . . . . . . . . . . . . . . . . Cargo Convoy Interrupts . | . . . . . . . . . . . . . . . . . . . . . . . . . . . . Stealth | -11 -10 -10 -10 -9 -8 -7 -7 -6 -6 -6 -6 -6 -5 -5 -5 -5 -5 -5 -4 -4 -4 -4 -3 -3 -2 -2 -2 --------- Run | Scr Mat Min Exi Min Mat Fac DSF Fac Low Low Zio Dee Pro Fac Ext Cet Arc Hub Fac Upp Upp Zhi Pro Res Res Qua Sec Distress Signals 12 | . 1 . . . 3 . . . . . . . . . 1 2 . . . . . . . 2 2 . 1 Communications Jammed . | . . . . . . . . . . . . . . . . . . . . . . . . . . . . Distress Signals . | . . . . . . . . . . . . . . . . . . . . . . . . . . . . Times Spotted 279 | . 8 1 . . 40 . 5 18 12 7 . 8 10 1 14 12 4 13 20 6 7 . 4 18 28 35 8 Peak Tracking Total 16 | . 3 1 . . 6 . 2 4 4 5 . 3 5 1 6 5 3 8 16 6 7 . 4 15 12 10 7 Tactical Retreats 28 | . . . . . 1 . . 1 3 . . 4 3 . 1 . . . 1 . 3 . . 1 4 6 . Traps | -11 -10 -10 -10 -9 -8 -7 -7 -6 -6 -6 -6 -6 -5 -5 -5 -5 -5 -5 -4 -4 -4 -4 -3 -3 -2 -2 -2 ------- Run | Scr Mat Min Exi Min Mat Fac DSF Fac Low Low Zio Dee Pro Fac Ext Cet Arc Hub Fac Upp Upp Zhi Pro Res Res Qua Sec Traps Triggered 9 | . . . . 1 2 . 1 . . . . . . . 2 . . . . . . . . . 3 . . Indirectly . | . . . . . . . . . . . . . . . . . . . . . . . . . . . . Trap Hack Attempts . | . . . . . . . . . . . . . . . . . . . . . . . . . . . . Triggered . | . . . . . . . . . . . . . . . . . . . . . . . . . . . . Disarmed . | . . . . . . . . . . . . . . . . . . . . . . . . . . . . Reprogrammed . | . . . . . . . . . . . . . . . . . . . . . . . . . . . . Reused . | . . . . . . . . . . . . . . . . . . . . . . . . . . . . Traps Extracted . | . . . . . . . . . . . . . . . . . . . . . . . . . . . . Installed . | . . . . . . . . . . . . . . . . . . . . . . . . . . . . Triggered 3 | . . . . . . . . . . 1 . . . . . . . . . . 1 . 1 . . . . Machines | -11 -10 -10 -10 -9 -8 -7 -7 -6 -6 -6 -6 -6 -5 -5 -5 -5 -5 -5 -4 -4 -4 -4 -3 -3 -2 -2 -2 ---------- Run | Scr Mat Min Exi Min Mat Fac DSF Fac Low Low Zio Dee Pro Fac Ext Cet Arc Hub Fac Upp Upp Zhi Pro Res Res Qua Sec Machines Disabled 15 | . . . . . . . . 1 . . . 2 . . 2 1 1 4 . . . . . . . 4 . Max in Single Turn 3 | . . . . . . . . 1 . . . 1 . . . . 1 3 . . . . . . . 1 . Garrison Access 4 | . . . . . 1 . . 1 . . . . . . . . . . 1 . . . . 1 . . . Network Hub 1 | . . . . . . . . . . . . . . . . . . 1 . . . . . . . . . Machines Sabotaged . | . . . . . . . . . . . . . . . . . . . . . . . . . . . . Garrisons Compromised . | . . . . . . . . . . . . . . . . . . . . . . . . . . . . Overloaded Fab Kills . | . . . . . . . . . . . . . . . . . . . . . . . . . . . . Hacking | -11 -10 -10 -10 -9 -8 -7 -7 -6 -6 -6 -6 -6 -5 -5 -5 -5 -5 -5 -4 -4 -4 -4 -3 -3 -2 -2 -2 --------- Run | Scr Mat Min Exi Min Mat Fac DSF Fac Low Low Zio Dee Pro Fac Ext Cet Arc Hub Fac Upp Upp Zhi Pro Res Res Qua Sec Machines Accessed 56 | . 2 . 1 1 5 1 . 7 2 . 1 . . . 8 2 1 2 4 . . 4 . 1 4 9 1 Terminals 36 | . 1 . . . 2 1 . 6 . . . . . . 6 2 . 2 2 . . . . 1 3 9 1 Fabricators 1 | . . . . . . . . . . . . . . . . . . . . . . . . . 1 . . Repair Stations 4 | . . . . . 2 . . . . . . . . . 1 . . . 1 . . . . . . . . Recycling Units 2 | . 1 . . . . . . . . . . . . . 1 . . . . . . . . . . . . Scanalyzers . | . . . . . . . . . . . . . . . . . . . . . . . . . . . . Garrison Access 3 | . . . . . 1 . . 1 . . . . . . . . . . 1 . . . . . . . . Total Hacks 152 | . 3 . 4 1 10 2 . 13 6 . 6 . . . 16 2 25 4 12 . . 17 . 2 9 18 2 Successful 98 | . 1 . 4 1 3 1 . 2 6 . 6 . . . 9 2 25 3 4 . . 17 . 1 4 9 . Failed 54 | . 2 . . . 7 1 . 11 . . . . . . 7 . . 1 8 . . . . 1 5 9 2 Catastrophic 11 | . . . . . 1 . . 2 . . . . . . 2 . . . 3 . . . . . 1 2 . Database Lockouts . | . . . . . . . . . . . . . . . . . . . . . . . . . . . . Manual 36 | . 2 . . . . . . 11 . . . . . . 4 1 . 2 2 . . . . 3 5 6 . Terminals 77 | . 2 . . . 6 2 . 12 . . . . . . 12 2 . 4 8 . . . . 2 7 18 2 Fabricators 2 | . . . . . . . . . . . . . . . . . . . . . . . . . 2 . . Repair Stations 8 | . . . . . 3 . . . . . . . . . 2 . . . 3 . . . . . . . . Recycling Units 3 | . 1 . . . . . . . . . . . . . 2 . . . . . . . . . . . . Scanalyzers . | . . . . . . . . . . . . . . . . . . . . . . . . . . . . Garrison Access 3 | . . . . . 1 . . 1 . . . . . . . . . . 1 . . . . . . . . Terminal Hacks 86 | . . . 4 1 1 1 . 1 6 . 6 . . . 6 2 25 1 3 . . 17 . 1 2 9 . Record 45 | . . . 4 . . . . . 5 . . . . . . 1 25 . . . . 5 . . 2 3 . Part Schematic 10 | . . . . . . . . . . . 6 . . . . . . . . . . 4 . . . . . Robot Analysis 5 | . . . . . . . . . . . . . . . . . . . 1 . . 4 . . . . . Prototype ID Bank 4 | . . . . . . . . . . . . . . . . . . . . . . 4 . . . . . Open Door 7 | . . . . 1 . . . . 1 . . . . . 3 1 . . . . . . . . . 1 . Open DSF 1 | . . . . . . 1 . . . . . . . . . . . . . . . . . . . . . Branch Access Points 5 | . . . . . 1 . . 1 . . . . . . . . . . 1 . . . . 1 . 1 . Locate Traps 2 | . . . . . . . . . . . . . . . 1 . . . . . . . . . . 1 . Hauler Manifests 1 | . . . . . . . . . . . . . . . 1 . . . . . . . . . . . . Zone Layout 6 | . . . . . . . . . . . . . . . 1 . . 1 1 . . . . . . 3 . Fabricator Hacks 1 | . . . . . . . . . . . . . . . . . . . . . . . . . 1 . . Network Status 1 | . . . . . . . . . . . . . . . . . . . . . . . . . 1 . . Repair Station Hacks 3 | . . . . . 1 . . . . . . . . . 2 . . . . . . . . . . . . Scan Component 2 | . . . . . 1 . . . . . . . . . 1 . . . . . . . . . . . . Repair 1 | . . . . . . . . . . . . . . . 1 . . . . . . . . . . . . Recycling Unit Hacks 2 | . 1 . . . . . . . . . . . . . 1 . . . . . . . . . . . . Retrieve Components 2 | . 1 . . . . . . . . . . . . . 1 . . . . . . . . . . . . Scanalyzer . | . . . . . . . . . . . . . . . . . . . . . . . . . . . . Garrison Access Hacks 3 | . . . . . 1 . . 1 . . . . . . . . . . 1 . . . . . . . . Seal Access 3 | . . . . . 1 . . 1 . . . . . . . . . . 1 . . . . . . . . Unauthorized Hacks 3 | . . . . . . . . . . . . . . . . . . 2 . . . . . . 1 . . Terminals 3 | . . . . . . . . . . . . . . . . . . 2 . . . . . . 1 . . Assimilate 1 | . . . . . . . . . . . . . . . . . . 1 . . . . . . . . . Botnet 2 | . . . . . . . . . . . . . . . . . . 1 . . . . . . 1 . . Fabricators . | . . . . . . . . . . . . . . . . . . . . . . . . . . . . Repair Stations . | . . . . . . . . . . . . . . . . . . . . . . . . . . . . Recycling Units . | . . . . . . . . . . . . . . . . . . . . . . . . . . . . Scanalyzers . | . . . . . . . . . . . . . . . . . . . . . . . . . . . . Garrison Access . | . . . . . . . . . . . . . . . . . . . . . . . . . . . . Data Cores Recovered . | . . . . . . . . . . . . . . . . . . . . . . . . . . . . Used . | . . . . . . . . . . . . . . . . . . . . . . . . . . . . Hacking Detections 31 | . 2 . . . 3 1 . 5 . . . . . . 6 1 . 1 2 . . . . 1 4 4 1 Full Trace Events 1 | . . . . . 1 . . . . . . . . . . . . . . . . . . . . . . Feedback Events . | . . . . . . . . . . . . . . . . . . . . . . . . . . . . Feedback Blocked . | . . . . . . . . . . . . . . . . . . . . . . . . . . . . Robot Schematics Acquired 3 | . . . . . . . . . . . 3 . . . . . . . . . . . . . . . . Robots Built . | . . . . . . . . . . . . . . . . . . . . . . . . . . . . Authchips . | . . . . . . . . . . . . . . . . . . . . . . . . . . . . Time . | . . . . . . . . . . . . . . . . . . . . . . . . . . . . Total Robot Build Rating . | . . . . . . . . . . . . . . . . . . . . . . . . . . . . Part Schematics Acquired 24 | . . . . . . . . . . . 20 . . . . . . . . . . 4 . . . . . Parts Built . | . . . . . . . . . . . . . . . . . . . . . . . . . . . . Authchips . | . . . . . . . . . . . . . . . . . . . . . . . . . . . . Time . | . . . . . . . . . . . . . . . . . . . . . . . . . . . . Total Part Build Rating . | . . . . . . . . . . . . . . . . . . . . . . . . . . . . Parts Repaired 1 | . . . . . . . . . . . . . . . 1 . . . . . . . . . . . . Time 38 | . . . . . . . . . . . . . . . 38 . . . . . . . . . . . . Parts Recycled . | . . . . . . . . . . . . . . . . . . . . . . . . . . . . Recycled Matter . | . . . . . . . . . . . . . . . . . . . . . . . . . . . . Retrieved Matter . | . . . . . . . . . . . . . . . . . . . . . . . . . . . . Retrieved Components 4 | . 3 . . . . . . . . . . . . . 1 . . . . . . . . . . . . Parts Scanalyzed . | . . . . . . . . . . . . . . . . . . . . . . . . . . . . Part Schematics Acquired . | . . . . . . . . . . . . . . . . . . . . . . . . . . . . Parts Damaged . | . . . . . . . . . . . . . . . . . . . . . . . . . . . . Bothacking | -11 -10 -10 -10 -9 -8 -7 -7 -6 -6 -6 -6 -6 -5 -5 -5 -5 -5 -5 -4 -4 -4 -4 -3 -3 -2 -2 -2 ------------ Run | Scr Mat Min Exi Min Mat Fac DSF Fac Low Low Zio Dee Pro Fac Ext Cet Arc Hub Fac Upp Upp Zhi Pro Res Res Qua Sec Used RIF Installer . | . . . . . . . . . . . . . . . . . . . . . . . . . . . . Robots Hacked . | . . . . . . . . . . . . . . . . . . . . . . . . . . . . Non-combat . | . . . . . . . . . . . . . . . . . . . . . . . . . . . . Combat . | . . . . . . . . . . . . . . . . . . . . . . . . . . . . Robot Hacks Applied . | . . . . . . . . . . . . . . . . . . . . . . . . . . . . Relay Couplers Released 6 | . . . . . . . . 3 . . . . . . . . . . . . . . . 3 . . . Machine Destruction 3 | . . . . . . . . . . . . . . . . . . . . . . . . 3 . . . Programmers 3 | . . . . . . . . 3 . . . . . . . . . . . . . . . . . . . Fabnet Peak Effective % . | . . . . . . . . . . . . . . . . . . . . . . . . . . . . Robots Rewired 9 | . . . . . . . . . . . . . . . 9 . . . . . . . . . . . . Allies Hacked . | . . . . . . . . . . . . . . . . . . . . . . . . . . . . Hacks Repelled . | . . . . . . . . . . . . . . . . . . . . . . . . . . . . Allies | -11 -10 -10 -10 -9 -8 -7 -7 -6 -6 -6 -6 -6 -5 -5 -5 -5 -5 -5 -4 -4 -4 -4 -3 -3 -2 -2 -2 -------- Run | Scr Mat Min Exi Min Mat Fac DSF Fac Low Low Zio Dee Pro Fac Ext Cet Arc Hub Fac Upp Upp Zhi Pro Res Res Qua Sec Total Allies 17 | . . . . . . . . . . . . . . . 16 1 . . . . . . . . . . . Largest Group 13 | . . . . . . . . . . . . . . . 13 9 2 . . . . . . . . . . Highest-Rated Group 569 | . . . . . . . . . . . . . . . 569 443 187 . . . . . . . . . . Highest-Rated Ally 153 | . . . . . . . . . . . . . . . 153 153 153 . . . . . . . . . . Total Orders . | . . . . . . . . . . . . . . . . . . . . . . . . . . . . Ally Attacks 188 | . . . . . . . . . . . . . . . 117 71 . . . . . . . . . . . Total Damage 4778 | . . . . . . . . . . . . . . . 2718 2060 . . . . . . . . . . . Kills 26 | . . . . . . . . . . . . . . . 18 8 . . . . . . . . . . . Allies Corrupted 2 | . . . . . . . . . . . . . . . 1 1 . . . . . . . . . . . Allies Melted . | . . . . . . . . . . . . . . . . . . . . . . . . . . . . Intel | -11 -10 -10 -10 -9 -8 -7 -7 -6 -6 -6 -6 -6 -5 -5 -5 -5 -5 -5 -4 -4 -4 -4 -3 -3 -2 -2 -2 ------- Run | Scr Mat Min Exi Min Mat Fac DSF Fac Low Low Zio Dee Pro Fac Ext Cet Arc Hub Fac Upp Upp Zhi Pro Res Res Qua Sec Robot Analysis Total 5 | . . . . . . . . . . . . . . . . . . . 1 . . 4 . . . . . Derelict Logs Recovered 9 | . . . . . . . . . 2 . 2 . 1 . . . . . . 2 2 . . . . . . Drone Launches . | . . . . . . . . . . . . . . . . . . . . . . . . . . . . Drone Recoveries . | . . . . . . . . . . . . . . . . . . . . . . . . . . . . Exploration | -11 -10 -10 -10 -9 -8 -7 -7 -6 -6 -6 -6 -6 -5 -5 -5 -5 -5 -5 -4 -4 -4 -4 -3 -3 -2 -2 -2 ------------- Run | Scr Mat Min Exi Min Mat Fac DSF Fac Low Low Zio Dee Pro Fac Ext Cet Arc Hub Fac Upp Upp Zhi Pro Res Res Qua Sec Turns Passed 10387 | 68 364 66 141 124 1333 12 176 1409 644 1105 1217 508 267 273 731 298 113 179 122 183 91 55 97 63 297 432 19 Spaces Moved 8094 | 47 324 44 145 108 611 7 94 705 276 517 772 336 301 192 413 220 57 242 211 231 260 134 242 87 585 886 47 Core 692 | 1 . . . . . . . . 2 2 . 1 258 70 10 . . 17 55 . . . 17 52 202 5 . Treads 1157 | . . . . . . . 12 705 210 83 . 58 . 89 . . . . . . . . . . . . . Legs 1332 | . . . . . 283 . . . . 107 . 259 42 . 318 220 57 46 . . . . . . . . . Wheels 2298 | 46 324 44 145 108 328 7 82 . 64 325 772 18 . . . . . . . . . . . 35 . . . Hover . | . . . . . . . . . . . . . . . . . . . . . . . . . . . . Flight 2615 | . . . . . . . . . . . . . 1 33 85 . . 179 156 231 260 134 225 . 383 881 47 Fastest Speed 27 | 50 80 95 95 95 115 100 100 160 145 140 155 120 50 45 45 120 120 37 37 34 34 34 34 50 32 27 30 Average Speed 101 | 79 82 102 95 95 145 100 108 160 210 193 155 130 71 107 104 120 120 58 42 34 34 34 39 66 42 31 30 Slowest Speed 1050 | 80 95 110 95 125 190 100 240 160 1050 1050 170 240 150 160 120 120 120 190 50 34 34 34 120 90 107 150 30 Overloaded Moves . | . . . . . . . . . . . . . . . . . . . . . . . . . . . . Propulsion Burnouts . | . . . . . . . . . . . . . . . . . . . . . . . . . . . . Robots Hopped 31 | . . . . . . . . . . . . . . . 1 . . 5 4 2 . . . . 19 . . Cave-ins Triggered 1 | . . . . . . . . . . . . . . . . . . . . . . . . . . 1 . Teleports 5 | . . . . . . . . . . . . . . . . . . . . . . . . . 1 2 2 Exploration Rate (%) 44 | 4 46 6 48 36 59 . 89 30 48 74 80 59 53 4 59 77 78 31 9 40 52 60 46 7 18 80 6 Regions Visited 27 Branch Regions 18 Pre-discovered Areas 9 | . . . 1 . . . . . 1 . 1 . . . . . . . . 1 2 3 . . . . . Known Exits Taken 18 | . . . . . . 1 . 1 1 1 1 1 1 1 1 1 1 1 1 1 1 1 1 1 . . . Unknown Exits Taken 8 | 1 1 1 1 1 1 . . . . . . . . . . . . . . . . . . . 1 1 . Scrap Searched 11 | . . 1 . 1 . . . . 1 . 3 . . . . . . . . 2 2 . 1 . . . . Spaces Dug 52 | . . . . . 8 . . 8 . 1 3 1 2 5 . . . 1 . 1 . . . . 4 18 . Terrain Destroyed 371 | . . 10 . . 24 . . 22 36 1 3 86 2 5 . . . 159 . 1 . . . . 4 18 . Melee 47 | . . . . . 3 . . 8 . 1 3 1 2 5 . . . 1 . 1 . . . . 4 18 . Projectile . | . . . . . . . . . . . . . . . . . . . . . . . . . . . . AOE 324 | . . 10 . . 21 . . 14 36 . . 85 . . . . . 158 . . . . . . . . . Terrain Rammed . | . . . . . . . . . . . . . . . . . . . . . . . . . . . . Walls Destroyed . | . . . . . . . . . . . . . . . . . . . . . . . . . . . . Machines Disabled . | . . . . . . . . . . . . . . . . . . . . . . . . . . . . Actions | -11 -10 -10 -10 -9 -8 -7 -7 -6 -6 -6 -6 -6 -5 -5 -5 -5 -5 -5 -4 -4 -4 -4 -3 -3 -2 -2 -2 --------- Run | Scr Mat Min Exi Min Mat Fac DSF Fac Low Low Zio Dee Pro Fac Ext Cet Arc Hub Fac Upp Upp Zhi Pro Res Res Qua Sec Total 9457 | 64 396 53 148 125 873 12 135 877 309 566 785 376 322 219 690 235 72 265 235 331 261 142 244 89 597 984 52 Wait 429 | 1 45 . . 10 55 . 3 44 6 2 . 2 2 . 81 . . 13 19 97 . . . . 5 41 3 Move 8012 | 46 323 43 144 107 610 7 93 704 275 516 771 335 300 191 410 219 56 231 203 226 259 133 241 86 551 885 47 Hop 26 | . . . . . . . . . . . . . . . 1 . . 5 4 2 . . . . 14 . . Pick Up 83 | 6 7 1 1 3 27 1 7 6 2 2 1 2 . 1 3 . . . 1 . 1 1 . . 4 6 . Fast Attach 101 | 6 2 1 . 3 8 . 6 9 2 4 4 3 1 4 15 2 1 4 5 . 1 3 1 2 6 8 . Attach 43 | . . . . . 6 3 . 7 1 3 . 5 . 1 1 . . 2 . 2 . 1 . . 5 4 2 Detach 25 | . 1 . . . 2 . . 3 . . 4 1 1 1 1 . . 3 . 1 . 1 1 . 3 2 . Swap 65 | . 1 2 2 2 24 . 1 18 2 3 2 . 1 1 2 2 . . . 1 . 1 . . . . . Drop 85 | . 4 1 1 . 37 1 7 8 1 . . 1 2 1 4 . . 2 1 1 . 2 1 . 1 9 . Fire 273 | 5 13 5 . . 98 . 17 66 17 28 . 20 . . . 4 . . . . . . . . . . . Melee 150 | . . . . . 6 . . 11 3 8 3 7 15 19 9 8 15 5 2 1 . . . 1 8 29 . Ram . | . . . . . . . . . . . . . . . . . . . . . . . . . . . . Kick 1 | . . . . . . . . . . . . . . . 1 . . . . . . . . . . . . Crush 1 | . . . . . . . . 1 . . . . . . . . . . . . . . . . . . . Escape Stasis 36 | . . . . . . . . . . . . . . . 36 . . . . . . . . . . . . Rewire 127 | . . . . . . . 1 . . . . . . . 126 . . . . . . . . . . . . Trap . | . . . . . . . . . . . . . . . . . . . . . . . . . . . . Miscellaneous . | . . . . . . . . . . . . . . . . . . . . . . . . . . . . Route ------- -11/Scrapyard -10/Materials -10/Mines -10/Exiles -9/Mines -8/Materials -7/Factory -7/DSF -6/Factory (discovered 3 exits: *Fac / *Low x2) -6/Lower Caves -6/Lower Caves -6/Zion (discovered 2 exits: *Dee / [*Pro]) -6/Deep Caves -5/Proximity Caves -5/Factory (discovered 3 exits: Fac / Upp / *Ext) -5/Extension (discovered 3 exits: *Fac x2 / *Cet) -5/Cetus (discovered 2 exits: *Fac / *Arc) -5/Archives (discovered 2 exits: *Hub x2) -5/Hub_04(d) (discovered 2 exits: *Fac x2) -4/Factory (discovered 2 exits: *Upp x2) -4/Upper Caves -4/Upper Caves -4/Zhirov -3/Proximity Caves -3/Research (discovered 4 exits: *Res / Arm / Tes x2) -2/Research -2/Quarantine -2/Section 7 History --------- Turn | Location | Event 4 | -11/Scrapyard | Discovered new exit (range 16) 69 | -11/Scrapyard | Entered Materials 169 | -10/Materials | Discovered new exit (range 12) 303 | -10/Materials | Build established: Mutant 433 | -10/Materials | Entered Mines 434 | -10/Mines | Assembled infested the area 495 | -10/Mines | Deemed a non-threat by the Exiles lab entrance 495 | -10/Mines | Discovered new exit (range 5) 499 | -10/Mines | Entered Exiles 523 | -10/Exiles | Met 8R-AWN 540 | -10/Exiles | Met EX-HEX 576 | -10/Exiles | Met EX-DEC 583 | -10/Exiles | Learned location of Zion (-6) 633 | -10/Exiles | Discovered new exit (range 10) 640 | -10/Exiles | Entered Mines 719 | -9/Mines | Discovered new exit (range 7) 728 | -9/Mines | Met a Derelict who couldn't figure out how to use a Trap Extractor 764 | -9/Mines | Entered Materials 764 | -8/Materials | Evolved 4 slots: Propulsion x1, Utility x3 1220 | -8/Materials | Build established: Scavenger-Mutant 1773 | -8/Materials | Build established: Mutant 2086 | -8/Materials | Discovered new exit (range 4) 2097 | -8/Materials | Entered Factory 2097 | -7/Factory | Evolved 2 slots: Propulsion x1, Utility x1 2109 | -7/Factory | Identified exit to DSF 2109 | -7/Factory | Entered DSF 2151 | -7/DSF | Additional patrols routed to DSF 2211 | -7/DSF | Discovered new exit (range 14) 2285 | -7/DSF | Entered Factory 2285 | -6/Factory | Evolved 2 slots: Power x1, Utility x1 2515 | -6/Factory | Build established: Scavenger-Mutant 3077 | -6/Factory | Spotted B-75 Beast 3095 | -6/Factory | Build established: Mutant 3164 | -6/Factory | Lost 3 parts (1p1n1u) 3518 | -6/Factory | Identified exit to Lower Caves 3600 | -6/Factory | Discovered new exit (range 14) 3694 | -6/Factory | Entered Lower Caves 3823 | -6/Lower Caves | Learned Factory stockpile data 4040 | -6/Lower Caves | Learned Factory garrison access intel 4048 | -6/Lower Caves | Learned location of Armory (-3) 4048 | -6/Lower Caves | Learned Armory emergency access door positions 4048 | -6/Lower Caves | Learned Research stockpile data 4048 | -6/Lower Caves | Learned Factory garrison access intel 4048 | -6/Lower Caves | Learned Research garrison access intel 4303 | -6/Lower Caves | Discovered new exit (range 12) 4335 | -6/Lower Caves | Identified exit to Lower Caves 4338 | -6/Lower Caves | Entered another Lower Caves area 4568 | -6/Lower Caves | Encountered a Warlord checkpoint 4752 | -6/Lower Caves | Build established: Scavenger-Mutant 5429 | -6/Lower Caves | Discovered new exit (range 10) 5442 | -6/Lower Caves | Identified exit to Zion 5443 | -6/Lower Caves | Entered Zion 5535 | -6/Zion | Discovered new exit (range 14) 5682 | -6/Zion | System corruption cleaned by Quarantine Array 5864 | -6/Zion | Identified exit to Deep Caves 5930 | -6/Zion | Given A8's code to call for help 5952 | -6/Zion | Learned Factory emergency access door positions 6218 | -6/Zion | Found CR-A16's Pointy Stick 6390 | -6/Zion | Found Prototype Processor 6390 | -6/Zion | Identified Exp. Core Analyzer 6393 | -6/Zion | Found Prototype Processor 6393 | -6/Zion | Identified Exp. Target Analyzer 6399 | -6/Zion | Found Prototype Processor 6399 | -6/Zion | Identified Exp. Targeting Computer 6479 | -6/Zion | Received a visual enhancement algorithm 6655 | -6/Zion | Saw the warning signs outside the Deep Caves entrance 6660 | -6/Zion | Entered Deep Caves 6797 | -6/Deep Caves | Attacked by Z-Imprinter 6827 | -6/Deep Caves | Destroyed Z-Imprinter 6855 | -6/Deep Caves | Lost 9 parts (1p2n2u4w) 6998 | -6/Deep Caves | Z-Facility disabled 7157 | -6/Deep Caves | Discovered new exit (range 11) 7166 | -6/Deep Caves | Identified exit to Proximity Caves 7168 | -6/Deep Caves | Entered Proximity Caves 7217 | -5/Proximity Caves | Core integrity fell below 50% 7284 | -5/Proximity Caves | Lost 5 parts (2p3n) 7298 | -5/Proximity Caves | Spotted B-75 Beast 7330 | -5/Proximity Caves | Attracted the attention of an 0b10 checkpoint 7374 | -5/Proximity Caves | Core integrity fell below 20% 7430 | -5/Proximity Caves | Discovered new exit (range 10) 7434 | -5/Proximity Caves | Learned 12 Factory zone layouts 7435 | -5/Proximity Caves | Identified exit to Factory 7435 | -5/Proximity Caves | Entered Factory 7435 | -5/Factory | Evolved 2 slots: Propulsion x1, Utility x1 7436 | -5/Factory | Identified exit to Upper Caves 7436 | -5/Factory | Identified exit to Factory 7439 | -5/Factory | Loaded intel: 4 garrison access locations 7518 | -5/Factory | Build established: Mutant 7702 | -5/Factory | Discovered new exit (range 16) 7708 | -5/Factory | Identified exit to Extension 7708 | -5/Factory | Entered Extension 7764 | -5/Extension | Enhanced Grunt warped into view, answering call for help 7769 | -5/Extension | Enhanced Grunt warped into view, answering call for help 7773 | -5/Extension | Rescued a captive Derelict 7776 | -5/Extension | Rescued a captive Derelict 7957 | -5/Extension | Rescued a captive Derelict 7957 | -5/Extension | Rescued a captive Derelict 8107 | -5/Extension | Repaired Great Maul 8128 | -5/Extension | Build established: Commander-Mutant 8145 | -5/Extension | Rescued A7 8178 | -5/Extension | Found Prototype Device 8178 | -5/Extension | Identified Exp. Thermal Shield 8228 | -5/Extension | Spotted B-75 Beast 8237 | -5/Extension | Spotted B-75 Beast 8248 | -5/Extension | Revealed the true nature of CR-A16's Pointy Stick 8252 | -5/Extension | Destroyed B-75 Beast 8259 | -5/Extension | Destroyed B-75 Beast 8272 | -5/Extension | Discovered exit to Factory (range 3) 8283 | -5/Extension | Lost 3 parts (1p1n1u) 8389 | -5/Extension | Discovered new exit (range 16) 8390 | -5/Extension | Discovered exit to Factory (range 15) 8406 | -5/Extension | Identified exit to Cetus 8439 | -5/Extension | Entered Cetus 8439 | -5/Cetus | Accompanied by 9 allies (A7) 8444 | -5/Cetus | Acquired a Cetus Manufacturing Module code from A7 8456 | -5/Cetus | Spotted Cetus Guard 8456 | -5/Cetus | Spotted Cetus Guard 8457 | -5/Cetus | Spotted Cetus Guard 8460 | -5/Cetus | Spotted Cetus Guard 8462 | -5/Cetus | Allies destroyed Cetus Guard 8479 | -5/Cetus | Allies destroyed Cetus Guard 8486 | -5/Cetus | Allies destroyed Cetus Guard 8492 | -5/Cetus | Allies destroyed Cetus Guard 8521 | -5/Cetus | Lost 5 parts (2p1n2u) 8529 | -5/Cetus | Started Cetus Manufacturing Module 8547 | -5/Cetus | Discovered new exit (range 15) 8554 | -5/Cetus | Manufactured an Enhanced Grunt 8554 | -5/Cetus | Cetus Manufacturing Module disabled 8556 | -5/Cetus | Build established: Scavenger-Mutant 8567 | -5/Cetus | Spotted Cetus Guard 8567 | -5/Cetus | Spotted Cetus Guard 8573 | -5/Cetus | Spotted Cetus Guard 8573 | -5/Cetus | Spotted Cetus Guard 8579 | -5/Cetus | Discovered exit to Factory (range 15) 8585 | -5/Cetus | Destroyed Cetus Guard 8587 | -5/Cetus | Allies destroyed Cetus Guard 8593 | -5/Cetus | Destroyed Cetus Guard 8596 | -5/Cetus | Allies destroyed Cetus Guard 8597 | -5/Cetus | Met Revision 17 8736 | -5/Cetus | Identified exit to Archives 8737 | -5/Cetus | Entered Archives 8737 | -5/Archives | Accompanied by 2 allies (A7) 8788 | -5/Archives | Core integrity fell below 50% 8814 | -5/Archives | Discovered new exit (range 14) 8824 | -5/Archives | Unable to access archive contents 8824 | -5/Archives | Unable to access archive contents 8826 | -5/Archives | Discovered new exit (range 15) 8849 | -5/Archives | Identified exit to Hub_04(d) 8850 | -5/Archives | Lost 8 parts (1p3n4u) 8850 | -5/Archives | Entered Hub_04(d) 8869 | -5/Hub_04(d) | Discovered exit to Factory (range 9) 8987 | -5/Hub_04(d) | Network Hub disabled 9016 | -5/Hub_04(d) | Spotted Lightning 9016 | -5/Hub_04(d) | Spotted Lightning 9017 | -5/Hub_04(d) | Spotted Lightning 9022 | -5/Hub_04(d) | Core integrity fell below 20% 9027 | -5/Hub_04(d) | Discovered exit to Factory (range 5) 9029 | -5/Hub_04(d) | Entered Factory 9029 | -4/Factory | Evolved 2 slots: Propulsion x1, Utility x1 9030 | -4/Factory | Loaded intel: 4 garrison access locations 9051 | -4/Factory | Lost 5 parts (4n1u) 9096 | -4/Factory | Spotted B-86 Titan 9100 | -4/Factory | Destroyed B-86 Titan 9114 | -4/Factory | Identified exit to Upper Caves 9128 | -4/Factory | Spotted B-86 Titan 9132 | -4/Factory | Build established: Mutant 9151 | -4/Factory | Entered Upper Caves 9159 | -4/Upper Caves | Learned Research terminal intel 9332 | -4/Upper Caves | Learned location of Testing (-3) 9332 | -4/Upper Caves | Discovered new exit (range 6) 9333 | -4/Upper Caves | Identified exit to Upper Caves 9334 | -4/Upper Caves | Entered another Upper Caves area 9422 | -4/Upper Caves | Discovered new exit (range 10) 9425 | -4/Upper Caves | Identified exit to Zhirov 9425 | -4/Upper Caves | Entered Zhirov 9425 | -4/Zhirov | Discovered new exit (range 3) 9432 | -4/Zhirov | Met Zhirov 9438 | -4/Zhirov | Learned location of Quarantine (-2) 9438 | -4/Zhirov | Learned location of Command (-1) 9441 | -4/Zhirov | Zhirov requested help retrieving the SGEMP Prototype 9447 | -4/Zhirov | Found Alien Artifact 9452 | -4/Zhirov | Found Alien Artifact 9452 | -4/Zhirov | Identified Integrated Dissipator 9452 | -4/Zhirov | Installed Integrated Dissipator, increased core heat dissipation (+20) 9480 | -4/Zhirov | Identified exit to Proximity Caves 9480 | -4/Zhirov | Entered Proximity Caves 9571 | -3/Proximity Caves | Discovered new exit (range 13) 9576 | -3/Proximity Caves | Identified exit to Research 9577 | -3/Proximity Caves | Entered Research 9577 | -3/Research | Evolved 2 slots: Utility x2 9579 | -3/Research | Loaded intel: 22 terminal locations 9580 | -3/Research | Loaded intel: 4 garrison access locations 9583 | -3/Research | Identified exit to Armory 9583 | -3/Research | Identified exit to Testing 9591 | -3/Research | Spotted B-86 Titan 9599 | -3/Research | Lost 4 parts (2n2u) 9627 | -3/Research | Core integrity fell below 50% 9638 | -3/Research | Discovered new exit (range 6) 9640 | -3/Research | Identified exit to Research 9640 | -3/Research | Entered another Research area 9640 | -2/Research | Evolved 2 slots: Propulsion x2 9660 | -2/Research | Lost 3 parts (2n1w) 9728 | -2/Research | Identified Transdimensional Reconstructor 9728 | -2/Research | Warped through subspace 9774 | -2/Research | Spotted B-90 Cyclops 9834 | -2/Research | Found Enh. Force Lance 9932 | -2/Research | Spotted B-90 Cyclops 9932 | -2/Research | Discovered new exit (range 16) 9937 | -2/Research | Entered Quarantine 9959 | -2/Quarantine | Found Alien Artifact 9959 | -2/Quarantine | Identified Core Reset Matrix 9959 | -2/Quarantine | Used Core Reset Matrix 9963 | -2/Quarantine | Detected hypermatrix surge 9963 | -2/Quarantine | Sensed 13 artifacts in vicinity 10017 | -2/Quarantine | Cryocooling Duct disabled 10032 | -2/Quarantine | Ambient heat levels rising (+20) 10032 | -2/Quarantine | Non-combat units ordered to evacuate 10045 | -2/Quarantine | Found Subatomic Replicator 10054 | -2/Quarantine | Found Core Stripper 10123 | -2/Quarantine | Core integrity fell below 50% 10171 | -2/Quarantine | Crushed by falling debris 10187 | -2/Quarantine | Search patrols dispatched 10235 | -2/Quarantine | Found Hpw. Transdimensional Reconstructor 10236 | -2/Quarantine | Found Hpw. Transdimensional Reconstructor 10238 | -2/Quarantine | Found Hpw. Transdimensional Reconstructor 10239 | -2/Quarantine | Found Transdimensional Reconstructor 10239 | -2/Quarantine | Warped through subspace 10258 | -2/Quarantine | Met incapacitated Sigix Warrior 10258 | -2/Quarantine | Lockdown squad dispatched 10267 | -2/Quarantine | Acquired the access code to the Sigix quarantine chamber 10269 | -2/Quarantine | Unlocked Sigix quarantine chamber 10287 | -2/Quarantine | Used Subatomic Replicator to replicate Cld. Q-thruster 10292 | -2/Quarantine | Warped through subspace 10335 | -2/Quarantine | Core integrity fell below 20% 10347 | -2/Quarantine | Spotted Fortress 10367 | -2/Quarantine | Discovered new exit (range 5) 10369 | -2/Quarantine | Entered Section 7 10370 | -2/Section 7 | Sensed 17 artifacts in vicinity 10387 | -2/Section 7 | Warped through subspace 10387 | -2/Section 7 | Spotted Alpha 7 10387 | -2/Section 7 | Spotted Alpha 7 10388 | -2/Section 7 | Warped through subspace 10388 | -2/Section 7 | Destroyed by H-81 Overseer with Heavy Linear Accelerator Last Messages --------------- 10292_ Warped through subspace. 10302_ C-30 ARC bursts open, deploying its payload. 10302_ H-88 Terminator unfolds itself. 10302_ Penetrated by Slug. 10313_ Slug penetrates Wall. 10330_ Slug penetrates Earth. 10330_ Slug penetrates Wall. 10333_ Penetrated by Slug. 10333_ Enh. Force Lance destroyed. 10334_ Slug penetrates Wall. 10347_ Machine disabled. 10355_ Cld. Q-thruster destroyed. 10367_ EXIT=FOUND LOCATION=UNKNOWN GOAL=ESCAPE 10370_ Sensed 17 artifacts in vicinity. 10373_ Connecting with Terminal... 10373_ Current location identified: Section 7 10386_ Penetrated by Slug. 10387_ Warped through subspace. Map ----- +----------------------------------------------------+ | ????????###########??????????????????????????????? | | ???###### = #??????????????????????????????? | | ???# # " #??????????????????????????????? | | ???# # """ #??????????????????????????????? | | #### # """" #??????????????????????????????? | | + """ #??????????????????????????????? | | # #??????????????????????????????? | | # #??????????????????????????????? | | # #??????????????????????????????? | | +### ###########??????????????????????????????? | | ???# #????????????????????????????????????????? | | ???# #################+#??????????????????????? | | ???# ?????????????????????? | | ???# ?????????????????????? | | ???# """??????????????????????????? | | ???# """??????????????????????????? | | ???###T########### """??????????????????????????? | | ?????###???????????? ????????????????????????? | | ?????????????????????? ??????????????????????????? | | ?????????????????????????????????????????????????? | | ?????????????????????????????????????????????????? | | ?????????????????#???????????????????????????????? | | ?????????????????# ?????????????????????????????? | | ?????????????????# ###############????????????? | | ?????????????????# A #????????????? | | ?????????????????# @ ????????? | | ?????????? k ????????? | | ?????????? ????????? | | ??????????? ##?????????? | | ??????????? ########## #??????????? | | ????????????##########??????????? #??????????? | | ??????????????????????????????????? #??????????? | | ????????????????????????????????????? #??????????? | | ?????????????????????????????????????????????????? | | ?????????????????????????????????????????????????? | | ?????????????????????????????????????????????????? | | ?????????????????????????????????????????????????? | | ?????????????????????????????????????????????????? | | ?????????????????????????????????????????????????? | | ?????????????????????????????????????????????????? | | ?????????????????????????????????????????????????? | | ?????????????????????????????????????????????????? | | ?????????????????????????????????????????????????? | | ?????????????????????????????????????????????????? | | ?????????????????????????????????????????????????? | | ?????????????????????????????????????????????????? | | ?????????????????????????????????????????????????? | | ?????????????????????????????????????????????????? | | ?????????????????????????????????????????????????? | | ?????????????????????????????????????????????????? | +----------------------------------------------------+ Best States ------------- Heat Dissipation 69 Energy Generation 36 Energy Capacity 1620 Matter Stores 300 Matter Capacity 300 Sight Range 16 Robot Scan Range 15 Terrain Scan Density 10 Armor Coverage 600 Resistance: KI 20 Resistance: TH 30 Propulsion Shielding 33 Weapon Cycling 15 Evasion (%) 64 Targeting Accuracy 13 Target Analysis 10 Recoil Reduction 4 Authchip Count 1 Item Schematics ----------------- None Robot Schematics ------------------ None Fabricated ------------ Nothing Alien Tech Used ----------------- Integrated Dissipator Transdimensional Reconstructor Core Reset Matrix Core Stripper Subatomic Replicator High-powered Transdimensional Reconstructor Achievements -------------- Ooh, Shiny! Project G-00 Revising The Future Challenges ------------ None Game ------ Seed RegenerativeLinkedRay Manual? 0 Play Time 03:00:13 Cumulative 149.1 hours Start 2022.09.06 @ 14:32:00 End 2022.09.06 @ 17:39:29 Sessions 1 Manual Loads 0 Difficulty Rogue Special Mode None Game No. 94 Rogue 75 Adventurer 16 Explorer 3 Win Type - Total 5 Types 4/0/1/0/0/0/0/0/0 Lore% 55 Gallery% 60 Achievement% 51 Wizard Run 0 Options --------- ASCII 1 Keyboard 1 Movement Vi Keybinds 0 Fullscreen 1 Font 28/Terminus Map View 67x55 Tactical HUD 1 Map Filters NONE Filters NONE Steam 1 RUN: b6eb72d5-1c12-483e-ad85-61e925148d90